Cogmind - Beta 14 @@@ ROGUE MODE // 2024.12.23 @ 21:59:31 Player: Mathewnd Result: Destroyed by S-27 Virus with Autogun Performance ------------- Evolutions (5) 2500 Regions Visited (9) 1800 Robots Destroyed (52) 260 Value Destroyed (1479) 1479 Prototype IDs (29) 580 Alien Tech Used (0) 0 Bonus (355) 355 TOTAL SCORE: 6974 Bonus ------- Follower Combat Kills 377 Aligned with FarCom 300 Friendly Fire -322 Cogmind --------- Core Integrity 0/1000 Matter 300/300 Energy 99/100 System Corruption 1% Temperature Cool (0) Movement Core (50) Location -5/Extension Parts ------- > --- POWER (1) -------- (None) > --- PROPULSION (5) --- (None) > --- UTILITY (9) ------ Visual Processing Unit Improved Signal Interpreter Modified TNC Microactuators Hacking Suite Hacking Suite System Shield > --- WEAPON (2) ------- (None) > --- INVENTORY (5) ---- Linear Gravjet Microactuators Improved Datajack Spear Peak State ------------ > --- POWER ------------ Neutrino Core > --- PROPULSION ------- Gravmag Array Gravmag Array Linear Gravjet > --- UTILITY ---------- Visual Processing Unit Improved Signal Interpreter Modified TNC Microactuators Microactuators Improved Medium Armor Plating Hacking Suite Hacking Suite System Shield > --- WEAPON ----------- Bore Cannon Chainsword > --- INVENTORY -------- Linear Gravjet Structural Scanner Improved Datajack Welding Torch Spear [Rating: 74] Favorites ----------- Power Ion Engine Engine Ion Engine Power Core Micro Nuclear Core Propulsion Nuclear Pulse Thruster Treads Light Treads Leg Aluminum Leg Wheel Compact Wheel Hover Unit Gravmag Array Flight Unit Nuclear Pulse Thruster Utility Hacking Suite Device Microactuators Storage Medium Storage Unit Processor Improved Signal Interpreter Hackware Hacking Suite Protection Light Armor Plating Weapon Chainsword Energy Gun Small Laser Ballistic Gun Assault Rifle Ballistic Cannon Bore Cannon Launcher Rocket Launcher Special Weapon Welding Torch Slashing Weapon Chainsword Piercing Weapon Spear Special Melee Weapon Improved Datajack Build | -11 -10 -10 -10 -9 -8 -7 -6 -5 -5 ------- Run | Yrd Mat Min Exi Min Mat Fac Fac Fac Ext Slots Evolved 10 | . . . . . 4 2 2 2 . Power . | . . . . . . . . . . Propulsion 3 | . . . . . 2 1 . . . Utility 7 | . . . . . 2 1 2 2 . Weapon . | . . . . . . . . . . Parts Attached 86 | 6 1 5 . 4 10 15 9 7 29 Power 11 | 1 . . . 1 1 . 2 1 5 Engine 7 | 1 . . . 1 1 . 1 . 3 Core 4 | . . . . . . . 1 1 2 Reactor . | . . . . . . . . . . Propulsion 32 | 2 . 2 . 1 4 9 4 4 6 Treads 8 | 2 . 1 . 1 4 . . . . Leg 1 | . . 1 . . . . . . . Wheel 1 | . . . . . . . . . 1 Hover 5 | . . . . . . . . . 5 Flight 17 | . . . . . . 9 4 4 . Utility 22 | 1 1 1 . . 4 3 2 2 8 Device 9 | . . . . . 1 1 2 . 5 Storage 2 | 1 . 1 . . . . . . . Processor 4 | . 1 . . . 1 1 . 1 . Hackware 3 | . . . . . . 1 . . 2 Protection 4 | . . . . . 2 . . 1 1 Artifact . | . . . . . . . . . . Weapon 21 | 2 . 2 . 2 1 3 1 . 10 Energy Gun 1 | . . . . 1 . . . . . Energy Cannon . | . . . . . . . . . . Ballistic Gun 4 | 2 . 1 . . 1 . . . . Ballistic Cannon 1 | . . . . . . . . . 1 Launcher 2 | . . 1 . . . . . . 1 Special Weapon 2 | . . . . . . . . . 2 Impact Weapon . | . . . . . . . . . . Slashing Weapon 6 | . . . . 1 . 2 1 . 2 Piercing Weapon 3 | . . . . . . . . . 3 Special Melee Weapon 2 | . . . . . . 1 . . 1 Unidentified Prototypes . | . . . . . . . . . . Parts Lost 38 | . . 4 . 2 1 . . 17 14 Power 7 | . . . . 1 . . . 2 4 Propulsion 15 | . . 2 . . 1 . . 9 3 Utility 8 | . . . . . . . . 4 4 Weapon 8 | . . 2 . 1 . . . 2 3 Highest Loss Streak 13 | . . 2 . 2 1 . . 13 6 To Critical Strikes . | . . . . . . . . . . Average Slot Usage (%) 91 | . 94 96 100 97 87 82 99 97 80 Engine 6 | . 14 14 14 12 9 7 1 . 2 Core 1 | . . . . . . . 3 4 2 Treads 8 | . 28 16 14 15 28 1 . . . Leg 2 | . . 8 14 10 . . . . . Hover 3 | . . . . . . . . . 14 Flight 11 | . . . . . . 33 33 28 . Device 9 | . . . . . 7 4 20 16 11 Storage 7 | . 14 14 14 14 9 7 6 4 . Processor 14 | . 8 14 14 14 8 14 13 16 17 Hackware 5 | . . . . . . 6 6 5 15 Protection 1 | . . . . . 6 . . 4 1 Energy Gun 1 | . . . . 1 9 . . . . Ballistic Gun 6 | . 28 22 14 11 6 . . . . Launcher 1 | . . 5 14 7 . . . . . Slashing Weapon 3 | . . . . 6 2 3 5 4 4 Special Melee Weapon 1 | . . . . . . . 6 4 . Peak Build Rating 74 | 6 7 9 10 12 26 39 61 64 74 Average Rating 39 | 5 6 7 9 10 21 29 59 61 63 On Entrance 18 | . 6 7 9 10 12 26 39 61 19 Naked Turns . | . . . . . . . . . . Heaviest Build 37 | 14 14 20 20 20 30 30 25 28 37 Greatest Support 83 | 40 40 40 20 40 83 83 30 30 49 Greatest Overweight (x) 6 | . . 4 . . 1 1 . 6 2 Average Overweight (x) . | . . . . . . . . . . Largest Inventory Capacity 10 | 8 8 10 10 10 10 10 10 10 5 Average Capacity 8 | 7 8 8 10 10 10 10 10 9 5 Most Carried 10 | 4 8 8 9 10 10 10 10 10 5 Average Carried 7 | 1 5 7 8 8 8 6 9 8 3 Final Capacity 10 | 8 8 10 10 10 10 10 10 5 5 Final Carried 10 | 3 8 8 9 8 10 7 10 4 4 Class Distribution -------------------- 30% | Mutant 15% | Infiltrator-Ninja 13% | Hacker-Scout 13% | Infiltrator-Sprinter 9% | Scavenger-Mutant 7% | Scavenger-Sprinter 4% | Scavenger-Scout Dominant Class ---------------- Mutant | -10/Materials Mutant | -10/Mines Mutant | -10/Exiles Mutant | -9/Mines Scavenger-Mutant | -8/Materials Scavenger-Sprinter | -7/Factory Infiltrator-Sprinter | -6/Factory Infiltrator-Ninja | -5/Factory Hacker-Scout | -5/Extension Resources | -11 -10 -10 -10 -9 -8 -7 -6 -5 -5 ----------- Run | Yrd Mat Min Exi Min Mat Fac Fac Fac Ext Matter Collected 1289 | 226 79 149 . 61 139 140 100 20 375 Remotely . | . . . . . . . . . . Salvage Created 2193 | . 95 199 . 52 340 105 132 55 1215 Parts 125 | . 14 10 . 1 23 5 7 8 57 Haulers Intercepted 4 | . . . . . 2 . . . 2 Recyclers Shooed 3 | . 2 1 . . . . . . . Parts Field Recycled . | . . . . . . . . . . Retrieved Matter . | . . . . . . . . . . Parts Self-Destructed . | . . . . . . . . . . Prevented . | . . . . . . . . . . Kills | -11 -10 -10 -10 -9 -8 -7 -6 -5 -5 ------- Run | Yrd Mat Min Exi Min Mat Fac Fac Fac Ext Combat Hostiles Destroyed 32 | . 5 6 . 2 3 1 2 . 13 Melee 13 | . . . . 1 2 1 2 . 7 Guns 11 | . 5 4 . 1 1 . . . . Cannons 2 | . . . . . . . . . 2 AOE 6 | . . 2 . . . . . . 4 Classes Destroyed 11 | . 2 2 . 1 3 1 . 1 1 Worker 1 | . . . . . 1 . . . . Builder 5 | . . . . . 1 . . . 4 Hauler 4 | . . . . . 2 . . . 2 Recycler 2 | . . . . . . . . . 2 Operator 2 | . . . . . . . . 1 1 Watcher 6 | . 1 . . . 1 2 . 1 1 Swarmer 13 | . 5 4 . . . . . . 4 Grunt 7 | . . . . 1 . . 1 . 5 Sentry 9 | . . 2 . . 3 . . . 4 Programmer 2 | . . . . . . 1 1 . . Assembled 1 | . . . . 1 . . . . . Thug 1 | . . 1 . . . . . . . Best Kill Streak 4 | . 3 4 . 1 3 2 1 1 4 Combat Bots Only 4 | . 3 4 . 1 3 1 1 . 4 Max Kills in Single Turn 4 | . 1 1 . 1 1 1 1 1 4 Gunslinging . | . . . . . . . . . . Exploded 4 | . . 1 . . . . . . 4 Melee 1 | . . . . 1 1 1 1 . 1 Uniques/NPCs Destroyed . | . . . . . . . . . . Combat | -11 -10 -10 -10 -9 -8 -7 -6 -5 -5 -------- Run | Yrd Mat Min Exi Min Mat Fac Fac Fac Ext Hostile Shots Fired 441 | . 67 47 . 21 28 4 4 124 146 Missed 148 | . 14 17 . 6 6 1 2 53 49 Damage Taken 4788 | . 459 394 . 197 322 47 38 1301 2030 Core 1262 | . 86 84 . 56 30 . . 500 506 Absorbed by Shields . | . . . . . . . . . . Regen/Repaired (Parts) 241 | . . . . . . . 32 . 209 Core Remaining (%) 80 | 100 . . . 9 94 100 100 . . Volleys Fired 75 | . 17 9 . 11 20 . . . 18 Largest 2 | . 2 2 . 1 2 . . . 1 Hottest 65 | . 40 53 . 20 65 . . . 57 Shots Fired 112 | . 34 18 . 11 31 . . . 18 Gun 91 | . 34 15 . 11 31 . . . . Cannon 8 | . . . . . . . . . 8 Launcher 7 | . . 3 . . . . . . 4 Special 6 | . . . . . . . . . 6 Kinetic 79 | . 34 15 . 11 11 . . . 8 Thermal 26 | . . . . . 20 . . . 6 Explosive 7 | . . 3 . . . . . . 4 Electromagnetic . | . . . . . . . . . . Robot Hit Streak 11 | . 3 7 . 5 11 . . . 1 Robot Miss Streak 4 | . 4 3 . 1 4 . . . 3 Penetration Max . | . . . . . . . . . . Secondary Targets 2 | . 2 . . . . . . . . Max Gunslinging Chain 1 | . 1 . . . . . . . . Shots Hit Robots 149 | . 15 10 . 16 25 10 2 9 62 Core Hits 81 | . 6 11 . 4 13 3 2 2 40 Critical Kills 4 | . . 2 . . . . . . 2 Critical Parts Destroyed . | . . . . . . . . . . Critical Strikes 13 | . . 2 . . . 1 . . 10 Destroy 4 | . . 2 . . . . . . 2 Sever 8 | . . . . . . 1 . . 7 Impale 1 | . . . . . . . . . 1 Melee Attacks 172 | . . . . 16 2 18 13 38 85 Impact . | . . . . . . . . . . Slashing 146 | . . . . 16 2 17 13 38 60 Piercing 21 | . . . . . . . . . 21 Sneak Attacks 21 | . . . . . . 2 1 . 18 Combat Hostiles 4 | . . . . . . . 1 . 3 Follow-up Attacks 5 | . . . . . . . . . 5 Damage Inflicted 5303 | 4 194 185 . 323 412 362 112 411 3300 Guns 688 | . 194 92 . 70 332 . . . . Cannons 80 | . . . . . . . . . 80 Explosions 854 | . . 93 . . . . . . 761 Melee 3650 | . . . . 253 80 362 112 411 2432 Ramming 31 | 4 . . . . . . . . 27 Kinetic 601 | . 194 92 . 70 165 . . . 80 Thermal 592 | . . . . . 167 . . . 425 Explosive 429 | . . 93 . . . . . . 336 Electromagnetic . | . . . . . . . . . . Impact . | . . . . . . . . . . Slashing 3324 | . . . . 253 80 362 112 411 2106 Piercing 326 | . . . . . . . . . 326 Highest Corruption 1 | . . . . . . . . 1 1 Average Corruption 1 | . . . . . . . . 1 1 Corruption Purged . | . . . . . . . . . . Corruption Blocked . | . . . . . . . . . . Effects 8 | . . . . . . . . . 8 Message Errors 3 | . . . . . . . . . 3 Matter Fused 1 | . . . . . . . . . 1 Heat Flow Errors 1 | . . . . . . . . . 1 Energy Discharges 1 | . . . . . . . . . 1 Data Loss (minor) 2 | . . . . . . . . . 2 Overload Shots . | . . . . . . . . . . Overflow Damage 343 | . . . . 23 . 16 . 82 222 Projectiles . | . . . . . . . . . . Explosions 42 | . . . . . . . . . 42 Melee 301 | . . . . 23 . 16 . 82 180 Knockbacks . | . . . . . . . . . . Impact . | . . . . . . . . . . Kinetic . | . . . . . . . . . . Secondary . | . . . . . . . . . . Self-Inflicted Damage 99 | . . . . . . . . . 99 Shots 2 | . . . . . . . . . 2 Rammed 8 | 2 . . . . . . . . 6 Targets Rammed 8 | 2 . . . . . . . . 6 Kicked . | . . . . . . . . . . Crushed . | . . . . . . . . . . Highest Temperature 188 | . . 34 . 20 6 . 5 12 188 Average Temperature 21 | . . 13 . 20 3 . 5 4 38 Received Heat Transfer 1267 | . 84 126 . 154 117 . 18 429 339 Siege Activations . | . . . . . . . . . . Robots Corrupted . | . . . . . . . . . . Combat Hostiles . | . . . . . . . . . . Parts Fried . | . . . . . . . . . . Impact Corruptions . | . . . . . . . . . . Robots Melted . | . . . . . . . . . . Combat Hostiles . | . . . . . . . . . . Parts Melted . | . . . . . . . . . . Heat Transferred 525 | . . . . . 375 . . . 150 Parts Sabotaged . | . . . . . . . . . . Parts Stolen . | . . . . . . . . . . Parts Stripped . | . . . . . . . . . . Power Chain Reactions . | . . . . . . . . . . Alert | -11 -10 -10 -10 -9 -8 -7 -6 -5 -5 ------- Run | Yrd Mat Min Exi Min Mat Fac Fac Fac Ext Peak Influence 348 | . 208 202 . 20 97 89 115 144 348 Initial 81 | . . 81 . . 7 . 8 21 7 Average 57 | . 127 53 . 4 39 9 31 52 101 Maximum Alert Level 1 | . 1 1 . . . . . . 1 Low Security (%) 93 | 100 85 88 . 100 100 100 100 100 83 Level 1 6 | . 14 11 . . . . . . 16 Level 2 . | . . . . . . . . . . Level 3 . | . . . . . . . . . . Level 4 . | . . . . . . . . . . Level 5 . | . . . . . . . . . . High Security . | . . . . . . . . . . Max Security . | . . . . . . . . . . Squads Dispatched 9 | . 1 . . . . 3 3 1 1 Investigation 3 | . . . . . . 1 2 . . Extermination 3 | . . . . . . 1 1 1 . Reinforcement 3 | . 1 . . . . 1 . . 1 Assault . | . . . . . . . . . . Garrison . | . . . . . . . . . . Intercept . | . . . . . . . . . . Searches Triggered . | . . . . . . . . . . Construction Impeded . | . . . . . . . . . . Haulers Reinforced 1 | . . . . . . 1 . . . Active Scanning Responses . | . . . . . . . . . . Cargo Convoy Interrupts . | . . . . . . . . . . Stealth | -11 -10 -10 -10 -9 -8 -7 -6 -5 -5 --------- Run | Yrd Mat Min Exi Min Mat Fac Fac Fac Ext Distress Signals 6 | . 1 . . . . . 3 . 2 Communications Jammed 2 | . . . . . . . . . 2 Distress Signals 2 | . . . . . . . . . 2 Times Spotted 124 | . 10 8 . 3 7 3 10 34 49 Peak Tracking Total 11 | . 5 3 . 2 4 2 8 10 11 Tactical Retreats 16 | . 2 1 . . . 1 5 5 2 Traps | -11 -10 -10 -10 -9 -8 -7 -6 -5 -5 ------- Run | Yrd Mat Min Exi Min Mat Fac Fac Fac Ext Traps Triggered 7 | . . . . . . 3 1 . 3 Indirectly . | . . . . . . . . . . Trap Hack Attempts . | . . . . . . . . . . Triggered . | . . . . . . . . . . Disarmed . | . . . . . . . . . . Reprogrammed . | . . . . . . . . . . Reused 2 | . . . . 2 . . . . . Traps Extracted . | . . . . . . . . . . Installed 3 | . . . . 3 . . . . . Triggered 2 | . . . . 2 . . . . . Machines | -11 -10 -10 -10 -9 -8 -7 -6 -5 -5 ---------- Run | Yrd Mat Min Exi Min Mat Fac Fac Fac Ext Machines Disabled 6 | . . . . . . . . 1 5 Max in Single Turn 2 | . . . . . . . . 1 2 Garrison Access 3 | . . . . . . 1 1 1 . Energy Cycler 1 | . . . . . . . . . 1 Machines Repaired . | . . . . . . . . . . Machines Dismantled . | . . . . . . . . . . Machines Sabotaged . | . . . . . . . . . . Overloaded Fab Kills . | . . . . . . . . . . Hacking | -11 -10 -10 -10 -9 -8 -7 -6 -5 -5 --------- Run | Yrd Mat Min Exi Min Mat Fac Fac Fac Ext Machines Accessed 38 | . 2 1 1 . 4 4 5 8 13 Terminals 26 | . 1 . . . 3 1 2 7 12 Fabricators 3 | . . . . . . 2 1 . . Repair Stations 2 | . . . . . . . 1 . 1 Recycling Units 1 | . 1 . . . . . . . . Scanalyzers 1 | . . . . . 1 . . . . Garrison Access 3 | . . . . . . 1 1 1 . Total Hacks 75 | . 3 1 1 . 9 5 10 15 31 Successful 49 | . 2 1 1 . 7 3 4 9 22 Failed 26 | . 1 . . . 2 2 6 6 9 Catastrophic 1 | . . . . . . 1 . . . Database Lockouts . | . . . . . . . . . . Manual 32 | . 2 . 1 . 3 1 4 11 10 Terminals 56 | . 2 . . . 7 1 5 14 27 Fabricators 4 | . . . . . . 3 1 . . Repair Stations 6 | . . . . . . . 2 . 4 Recycling Units 1 | . 1 . . . . . . . . Scanalyzers 2 | . . . . . 2 . . . . Garrison Access 4 | . . . . . . 1 2 1 . Terminal Hacks 23 | . . 1 1 . 4 . 1 3 13 Robot Analysis 3 | . . . . . 1 . . . 2 Prototype ID Bank 2 | . . . . . 1 . . . 1 Open Door 6 | . . 1 . . . . . 1 4 Branch Access Points 1 | . . . . . . . . 1 . Terminal Index 1 | . . . . . . . . . 1 Alert Level 5 | . . . . . 2 . 1 . 2 Unreport Threat 1 | . . . . . . . . . 1 Locate Traps 1 | . . . . . . . . . 1 Zone Layout 2 | . . . . . . . . 1 1 Derelict Proto ID Bank 1 | . . . 1 . . . . . . Fabricator Hacks 2 | . . . . . . 2 . . . Network Status 2 | . . . . . . 2 . . . Repair Station Hacks 6 | . . . . . . . 2 . 4 Scan Component 3 | . . . . . . . 1 . 2 Repair 3 | . . . . . . . 1 . 2 Recycling Unit Hacks 1 | . 1 . . . . . . . . Report Inventory 1 | . 1 . . . . . . . . Scanalyzer 1 | . . . . . 1 . . . . Insert Component 1 | . . . . . 1 . . . . Garrison Access Hacks 3 | . . . . . . 1 1 1 . Seal Access 3 | . . . . . . 1 1 1 . Unauthorized Hacks 13 | . 1 . . . 2 . . 5 5 Terminals 13 | . 1 . . . 2 . . 5 5 Assimilate 1 | . . . . . . . . 1 . Botnet 12 | . 1 . . . 2 . . 4 5 Fabricators . | . . . . . . . . . . Repair Stations . | . . . . . . . . . . Recycling Units . | . . . . . . . . . . Scanalyzers . | . . . . . . . . . . Garrison Access . | . . . . . . . . . . Data Cores Recovered 1 | . . . . . 1 . . . . Used . | . . . . . . . . . . Hacking Detections 25 | . 1 . . . 2 3 5 6 8 Full Trace Events 1 | . . . . . . . 1 . . Feedback Events . | . . . . . . . . . . Feedback Blocked . | . . . . . . . . . . Robot Schematics Acquired . | . . . . . . . . . . Robots Built . | . . . . . . . . . . Authchips . | . . . . . . . . . . Time . | . . . . . . . . . . Total Robot Build Rating . | . . . . . . . . . . Part Schematics Acquired . | . . . . . . . . . . Parts Built . | . . . . . . . . . . Authchips . | . . . . . . . . . . Time . | . . . . . . . . . . Total Part Build Rating . | . . . . . . . . . . Parts Repaired 3 | . . . . . . . 1 . 2 Time 144 | . . . . . . . 38 . 106 Parts Recycled . | . . . . . . . . . . Recycled Matter . | . . . . . . . . . . Retrieved Matter . | . . . . . . . . . . Retrieved Components . | . . . . . . . . . . Parts Scanalyzed . | . . . . . . . . . . Part Schematics Acquired . | . . . . . . . . . . Parts Damaged . | . . . . . . . . . . Bothacking | -11 -10 -10 -10 -9 -8 -7 -6 -5 -5 ------------ Run | Yrd Mat Min Exi Min Mat Fac Fac Fac Ext Used RIF Installer . | . . . . . . . . . . Robots Hacked 1 | . . . . . . 1 . . . Non-combat 1 | . . . . . . 1 . . . Combat . | . . . . . . . . . . Robot Hacks Applied 1 | . . . . . . 1 . . . no_distress 1 | . . . . . . 1 . . . Relay Couplers Released . | . . . . . . . . . . Fabnet Peak Effective % . | . . . . . . . . . . Robots Rewired 10 | . . . . . . . . . 10 Allies Hacked . | . . . . . . . . . . Hacks Repelled . | . . . . . . . . . . Allies | -11 -10 -10 -10 -9 -8 -7 -6 -5 -5 -------- Run | Yrd Mat Min Exi Min Mat Fac Fac Fac Ext Total Allies 16 | . . 1 . . . . . 1 14 Largest Group 9 | . . 1 . . . . . 1 9 Highest-Rated Group 285 | . . 31 . . . . . 26 285 Highest-Rated Ally 39 | . . 31 . . . . . 26 39 Total Orders . | . . . . . . . . . . Ally Attacks 145 | . . 7 . . 7 . . . 131 Total Damage 2431 | . . 64 . . 25 . . . 2342 Kills 20 | . . 1 . . 1 . . . 18 Allies Corrupted . | . . . . . . . . . . Allies Melted . | . . . . . . . . . . Intel | -11 -10 -10 -10 -9 -8 -7 -6 -5 -5 ------- Run | Yrd Mat Min Exi Min Mat Fac Fac Fac Ext Robot Analysis Total 3 | . . . . . 1 . . . 2 Derelict Logs Recovered 2 | . . 1 . 1 . . . . . Drone Launches 7 | . . . . . 7 . . . . Drone Recoveries 7 | . . . . . 7 . . . . Exploration | -11 -10 -10 -10 -9 -8 -7 -6 -5 -5 ------------- Run | Yrd Mat Min Exi Min Mat Fac Fac Fac Ext Turns Passed 7843 | 108 348 1102 344 388 820 547 1019 1278 1889 Spaces Moved 7443 | 63 179 649 215 205 441 1043 994 1640 2014 Core 109 | 10 . 21 . . . . . 41 37 Treads 1736 | 53 179 628 215 205 441 15 . . . Legs . | . . . . . . . . . . Wheels 124 | . . . . . . . . . 124 Hover 1853 | . . . . . . . . . 1853 Flight 3621 | . . . . . . 1028 994 1599 . Fastest Speed 28 | 50 160 160 160 160 160 28 28 28 45 Average Speed 66 | 142 160 162 160 160 161 30 28 29 51 Slowest Speed 440 | 160 160 250 160 160 240 160 28 440 150 Overloaded Moves . | . . . . . . . . . . Propulsion Burnouts . | . . . . . . . . . . Robots Hopped 21 | . . . . . . 1 2 18 . Cave-ins Triggered . | . . . . . . . . . . Exploration Rate (%) 43 | 4 34 97 61 37 29 25 22 28 98 Regions Visited 9 Branch Regions 4 Pre-discovered Areas 1 | . . 1 . . . . . . . Known Exits Taken 8 | . 1 1 1 1 1 1 1 1 . Unknown Exits Taken 1 | 1 . . . . . . . . . Scrap Searched 1 | . . 1 . . . . . . . Spaces Dug 48 | . . . . . . 3 11 24 10 Terrain Destroyed 100 | . . 23 . . . 3 11 24 39 Melee 48 | . . . . . . 3 11 24 10 Projectile . | . . . . . . . . . . AOE 52 | . . 23 . . . . . . 29 Terrain Rammed . | . . . . . . . . . . Walls Destroyed . | . . . . . . . . . . Machines Disabled . | . . . . . . . . . . Actions | -11 -10 -10 -10 -9 -8 -7 -6 -5 -5 --------- Run | Yrd Mat Min Exi Min Mat Fac Fac Fac Ext Total 10052 | 81 208 678 215 240 519 1252 1713 2360 2786 Wait 2106 | . 2 11 . . 31 157 665 693 547 Move 7395 | 63 178 648 214 204 440 1040 988 1606 2014 Hop 18 | . . . . . . 1 2 15 . Pick Up 82 | 10 8 4 1 1 10 12 11 1 24 Fast Attach 4 | . . . . 1 1 . 1 . 1 Attach 64 | 6 1 4 . 2 5 15 4 7 20 Detach 1 | . . . . . . 1 . . . Swap 18 | . . 1 . 1 4 . 4 . 8 Drop 32 | 1 2 1 . 1 6 8 6 . 7 Fire 75 | . 17 9 . 11 20 . . . 18 Melee 162 | . . . . 16 2 18 13 38 75 Ram 6 | . . . . . . . . . 6 Kick . | . . . . . . . . . . Crush 1 | 1 . . . . . . . . . Escape Stasis 35 | . . . . . . . 19 . 16 Rewire 50 | . . . . . . . . . 50 Trap 3 | . . . . 3 . . . . . Miscellaneous . | . . . . . . . . . . Route ------- -11/Scrapyard -10/Materials -10/Mines (discovered 3 exits: *Mat x2 / *Exi) -10/Exiles -9/Mines -8/Materials -7/Factory -6/Factory (discovered 2 exits: *Fac x2) -5/Factory (discovered 4 exits: Upp x2 / *Ext x2) -5/Extension (discovered 3 exits: *Fac x2 / *Cet) History --------- Turn | Location | Event 4 | -11/Scrapyard | Discovered new exit (range 15) 109 | -11/Scrapyard | Entered Materials 302 | -10/Materials | Build established: Mutant 436 | -10/Materials | Discovered new exit (range 14) 456 | -10/Materials | Identified exit to Mines 457 | -10/Materials | Entered Mines 609 | -10/Mines | Received a Mining Laser from a helpful Derelict 673 | -10/Mines | Assembled infested the area 829 | -10/Mines | Discovered new exit (range 12) 845 | -10/Mines | Identified exit to Materials 854 | -10/Mines | Received a Rocket Launcher from a helpful Derelict 864 | -10/Mines | Found the Drone Emporium 874 | -10/Mines | Found Prototype Device 899 | -10/Mines | Discovered exit to Materials (range 13) 1089 | -10/Mines | Core integrity fell below 50% 1142 | -10/Mines | A weapon hastily lodged in a ceiling crevice suddenly fell to the ground 1393 | -10/Mines | Learned location of Recycling (-9) 1552 | -10/Mines | Deemed a non-threat by the Exiles lab entrance 1552 | -10/Mines | Discovered new exit (range 5) 1557 | -10/Mines | Identified exit to Exiles 1559 | -10/Mines | Entered Exiles 1598 | -10/Exiles | Met 8R-AWN 1625 | -10/Exiles | Met EX-HEX 1671 | -10/Exiles | Met EX-BIN 1694 | -10/Exiles | Aligned with FarCom system 1695 | -10/Exiles | Given EX-Vault access code 1732 | -10/Exiles | Opened EX-Vault 1743 | -10/Exiles | Found Modified TNC 1780 | -10/Exiles | Warned to stay clear of 0b10 Research branches 1823 | -10/Exiles | Met EX-DEC 1882 | -10/Exiles | Discovered new exit (range 14) 1901 | -10/Exiles | Identified exit to Mines 1903 | -10/Exiles | Left Exiles lab with Modified TNC 1903 | -10/Exiles | Entered Mines 2087 | -9/Mines | Excavation squad dispatched 2087 | -9/Mines | A large section of the Mines collapsed 2185 | -9/Mines | Found a hidden stash of uninstalled traps 2211 | -9/Mines | Core integrity fell below 20% 2285 | -9/Mines | Discovered new exit (range 5) 2290 | -9/Mines | Identified exit to Materials 2291 | -9/Mines | Entered Materials 2291 | -8/Materials | Evolved 4 slots: Propulsion x2, Utility x2 2461 | -8/Materials | Identified Splice Drone Bay 2609 | -8/Materials | Discovered new exit (range 8) 2620 | -8/Materials | Identified exit to Factory 2838 | -8/Materials | Build established: Scavenger-Mutant 3111 | -8/Materials | Entered Factory 3111 | -7/Factory | Evolved 2 slots: Propulsion x1, Utility x1 3432 | -7/Factory | Build established: Scavenger-Sprinter 3491 | -7/Factory | Discovered new exit (range 13) 3499 | -7/Factory | Identified exit to Factory 3658 | -7/Factory | Entered another Factory area 3658 | -6/Factory | Evolved 2 slots: Utility x2 3702 | -6/Factory | Repaired Lgt. Deuterium Engine 4045 | -6/Factory | Build established: Infiltrator-Sprinter 4412 | -6/Factory | Discovered new exit (range 16) 4426 | -6/Factory | Discovered new exit (range 14) 4443 | -6/Factory | Identified exit to Factory 4677 | -6/Factory | Entered another Factory area 4677 | -5/Factory | Evolved 2 slots: Utility x2 5011 | -5/Factory | Build established: Infiltrator-Ninja 5380 | -5/Factory | Identified exit to Upper Caves 5380 | -5/Factory | Identified exit to Extension 5889 | -5/Factory | Lost 3 parts (1p1n1u) 5955 | -5/Factory | Entered Extension 5966 | -5/Extension | Lost 13 parts (1p7n3u2w) 6139 | -5/Extension | Rescued a captive Derelict 6205 | -5/Extension | Core integrity fell below 50% 6324 | -5/Extension | Rescued a captive Derelict 6325 | -5/Extension | Rescued a captive Derelict 6584 | -5/Extension | Spotted B-75 Beast 6598 | -5/Extension | Spotted B-75 Beast 6627 | -5/Extension | Build established: Hacker-Scout 6931 | -5/Extension | Repaired Gravmag Array 6992 | -5/Extension | Repaired Linear Gravjet 7299 | -5/Extension | Discovered new exit (range 3) 7299 | -5/Extension | Identified exit to Factory 7330 | -5/Extension | Disrupted transfer network 7512 | -5/Extension | Rescued a captive Derelict 7554 | -5/Extension | Discovered exit to Factory (range 10) 7555 | -5/Extension | Discovered new exit (range 6) 7557 | -5/Extension | Identified exit to Cetus 7755 | -5/Extension | Build established: Scavenger-Scout 7772 | -5/Extension | Energy Cycler disabled 7810 | -5/Extension | Lost 3 parts (1p1n1u) 7839 | -5/Extension | Core integrity fell below 20% 7844 | -5/Extension | Destroyed by S-27 Virus with Autogun Last Messages --------------- S-27 Virus destroyed. C-30 ARC bursts open, deploying its payload. L-41 Fighter unfolds itself. G-50 Soldier unfolds itself. Structural Scanner destroyed. Bore Cannon destroyed. Gravmag Array destroyed. S-27 Virus destroyed. Chainsword destroyed. Slammed into S-27 Virus. Neutrino Core broken. Destabilizing: Short circuit. Slammed into S-27 Virus. S-27 Virus destroyed. Slammed into S-27 Virus. Destabilizing: Core damaged (-20). Slammed into S-27 Virus. Gravmag Array destroyed. Broken Neutrino Core destroyed. Slammed into S-27 Virus. Map ----- +----------------------------------------------------+ | # #??????#####??????# #??? | | # #?????????????????###########################??? | | # #????????????????????????????????####??????????? | | # #??????????????????????????????????????????????? | | # #??????????????????????????????????????????????? | | # #??????????????????????????????????????????????? | | # ##?????????????????????????????????????????????? | | # ##?????????????????????????????????????????????? | | # ##?????????????????????????????????????????????? | | # ##?????????????????????????????????????????????? | | # ##?????????????????????????????????????????????? | | # ##?????????????????????????????????????????????? | | # ##?????????????????????????????????????????????? | | # ##?????????????????????????????????????????????? | | # ####???????????????????????????????????????????? | | # ####???????????????????????????????????????????? | | " ""##???????????????????????????????????????????? | | " " ##???????????????????????????????????????????? | | ##???????????????????????????????????????????? | | ############################################## | | ############################################## | | =%= s | | t [% % | | g s k | | u ! s sgss%* | | % %%l%%@ | | ############################################## | | ############################################## | | ##???????????????????????????????????????????? | | ##???????????????????????????????????????????? | | ##???????????????????????????????????????????? | | ######???????????????????????????????????????????? | | ######???????????????????????????????????????????? | | ?????????????????????????????????????????????????? | | | | | | | | | | | | | | | | | | | | | | | | | | | | | | | | | +----------------------------------------------------+ Best States ------------- Heat Dissipation 40 Energy Generation 19 Energy Capacity 315 Matter Stores 300 Matter Capacity 300 Sight Range 18 Terrain Scan Density 10 ECM Strength 2 Jamming Range 12 Armor Coverage 225 Melee Speed Boost 40 Evasion (%) 72 Recoil Reduction 4 Offensive Hacking 20 Defensive Hacking 10 Item Schematics ----------------- None Robot Schematics ------------------ None Fabricated ------------ Nothing Alien Tech Used ----------------- None Achievements -------------- None Challenges ------------ None Game ------ Seed RestorationTargetScanner Manual? 0 Play Time 01:33:28 Cumulative 55.5 hours Start 2024.12.23 @ 20:00:28 End 2024.12.23 @ 21:59:31 Sessions 1 Manual Loads 0 Difficulty Rogue Special Mode None Game No. 60 Rogue 60 Adventurer 0 Explorer 0 Win Type - Total 1 Types 1/0/0/0/0/0/0/0/0 Lore% 28 Gallery% 36 Achievement% 34 Wizard Run 0 Options --------- Layout 1 ASCII 0 Keyboard 0 Movement Mouse Keybinds 0 Fullscreen 1 Font 24/Smallcaps Map View 50x35 Zoom Use 0% Tactical HUD 0 Map Filters NONE Filters NONE Steam 1 RUN: ae5f0e13-57cc-494e-b4a3-86cc5db256ad